bitfinex-derivatives/quotes_BNBF0:USTF0_20260114
["timestamp","ask_amount","ask_price","bid_price","bid_amount"]
[1768358402199,0.18310826,951.24,948.69,1.04557566]
[1768358403095,0.18310826,951.24,948.67,1.04557566]
[1768358403903,30.5211921,951.15,948.67,1.04557566]
[1768358404201,30.5211921,951.15,948.66,1.04557566]
[1768358404499,30.5211921,951.15,948.65,1.04557566]
[1768358405198,30.5211921,951.15,948.64,1.04557566]
[1768358405701,30.5211921,951.15,948.57,0.18315597]
[1768358405702,30.5211921,951.15,948.63,1.04557566]
[1768358405899,30.5211921,951.15,948.57,0.18315597]
[1768358428214,0.18319839,950.51,948.57,0.18315597]
[1768358435419,0.18319839,950.51,948.57,1.22873163]
[1768358435820,0.18319839,950.51,948.57,0.18315597]
[1768358437125,0.18319839,950.51,948.57,1.22873163]
[1768358438225,0.18319839,950.51,948.58,1.04557566]
[1768358439127,0.18319839,950.51,948.59,1.04557566]
[1768358440128,0.18319839,950.51,948.61,1.04557566]
[1768358441127,0.18319839,950.51,948.63,1.04557566]
[1768358442228,0.18319839,950.51,948.65,1.04557566]
[1768358443131,0.18319839,950.51,948.69,1.04557566]
[1768358445734,0.18319839,950.51,948.79,1.04557566]
[1768358448238,0.18319839,950.51,948.8,1.04557566]
[1768358455645,0.18319839,950.51,948.79,1.04557566]
[1768358465555,0.18319839,950.51,948.75,1.04557566]
[1768358465750,0.18319839,950.51,948.62,1.04557566]
[1768358465953,0.18319839,950.51,948.61,1.04557566]
[1768358466453,0.18319839,950.51,948.58,1.04557566]
[1768358467253,0.18319839,950.51,948.57,1.04557566]
[1768358468250,0.18319839,950.51,948.55,1.04557566]
[1768358468850,0.18319839,950.51,948.54,1.04557566]
[1768358469353,0.18319839,950.51,948.53,1.04557566]
[1768358470253,0.18319839,950.51,948.52,1.04557566]
[1768358472350,0.18319839,950.51,948.51,1.04557566]
[1768358473257,0.18319839,950.51,948.5,1.04557566]
[1768358473653,0.18319839,950.51,948.51,1.04557566]
[1768358474160,0.18319839,950.51,948.5,1.04557566]
[1768358475854,0.18319839,950.51,948.44,0.1832037]
[1768358485567,0.18319839,950.51,948.51,1.04557566]
[1768358485761,0.18319839,950.51,948.59,1.04557566]
[1768358486864,0.18319839,950.51,948.74,1.04557566]
[1768358488263,0.18319839,950.51,948.73,1.04557566]
[1768358489869,0.18319839,950.51,948.74,1.04557566]
[1768358493274,0.18319839,950.51,948.73,1.04557566]
[1768358495773,0.18319839,950.51,948.56,1.5785162]
[1768358495774,0.18319839,950.51,948.71,1.04557566]
[1768358495971,0.18319839,950.51,948.79,1.04557566]
[1768358496171,0.18319839,950.51,948.8,1.04557566]
[1768358496672,0.18319839,950.51,948.87,1.04557566]
[1768358496975,0.18319839,950.51,948.88,1.04557566]
[1768358497175,0.18319839,950.51,948.97,1.04557566]
[1768358497471,0.18319839,950.51,948.95,1.04557566]
[1768358498276,0.18319839,950.51,948.94,1.04557566]
[1768358499277,0.18319839,950.51,948.93,1.04557566]
[1768358499476,0.18319839,950.51,948.94,1.04557566]
[1768358500275,0.18319839,950.51,948.92,1.04557566]
[1768358500978,0.18319839,950.51,948.95,1.04557566]
[1768358501178,0.18319839,950.51,948.96,1.04557566]
[1768358502274,0.18319839,950.51,948.95,1.04557566]
[1768358503275,0.18319839,950.51,948.93,1.04557566]
[1768358504276,0.18319839,950.51,948.92,1.04557566]
[1768358505381,0.18319839,950.51,948.91,1.04557566]
[1768358505881,0.18319839,950.51,948.94,1.04557566]
[1768358506379,0.18319839,950.51,948.93,1.04557566]
[1768358506882,0.18319839,950.51,948.95,1.04557566]
[1768358507380,0.18319839,950.51,948.93,1.04557566]
[1768358507884,0.18319839,950.51,948.94,1.04557566]
[1768358508085,0.18319839,950.51,948.93,1.04557566]
[1768358508285,0.18319839,950.51,948.92,1.04557566]
[1768358509181,0.18319839,950.51,948.93,1.04557566]
[1768358509382,0.18319839,950.51,948.95,1.04557566]
[1768358509782,0.18319839,950.51,948.44,0.1832037]
[1768358509783,0.18319839,950.51,948.99,1.04557566]
[1768358509985,0.18319839,950.51,949.0,1.04557566]
[1768358510288,0.18319839,950.51,948.99,1.04557566]
[1768358510689,0.18319839,950.51,949.0,1.04557566]
[1768358511285,0.18319839,950.51,948.99,1.04557566]
[1768358512289,0.18319839,950.51,948.44,0.1832037]
[1768358512290,0.18319839,950.51,948.98,1.04557566]
[1768358513087,0.18319839,950.51,948.99,1.04557566]
[1768358513293,0.18319839,950.51,948.98,1.04557566]
[1768358513491,0.18319839,950.51,949.0,1.04557566]
[1768358514290,0.18319839,950.51,948.99,1.04557566]
[1768358515488,0.18319839,950.51,948.98,1.04557566]
[1768358522195,0.18319839,950.51,948.97,1.04557566]
[1768358522797,0.18319839,950.51,948.91,1.04557566]
[1768358522997,0.18319839,950.51,948.9,1.04557566]
[1768358523694,0.18319839,950.51,948.89,1.04557566]
[1768358523999,0.18319839,950.51,948.95,1.04557566]
[1768358524194,0.18319839,950.51,949.01,1.04557566]
[1768358524398,0.18319839,950.51,949.03,1.04557566]
[1768358525196,0.18319839,950.51,949.04,1.04557566]
[1768358525500,0.18319839,950.51,949.06,1.04557566]
[1768358526199,0.18319839,950.51,949.07,1.04557566]
[1768358527302,0.18319839,950.51,949.08,1.04557566]
[1768358527798,0.18319839,950.51,949.09,1.04557566]
[1768358528299,0.18319839,950.51,948.92,1.5785162]
[1768358528300,0.18319839,950.51,949.1,1.04557566]
[1768358529204,0.18319839,950.51,949.12,1.04557566]
[1768358530202,0.18319839,950.51,949.14,1.04557566]
[1768358530704,0.18319839,950.51,949.15,1.04557566]
[1768358531204,0.18319839,950.51,949.14,1.04557566]
[1768358531403,0.18319839,950.51,949.15,1.04557566]
[1768358532304,0.18319839,950.51,949.16,1.04557566]
[1768358533405,0.18319839,950.51,949.17,1.04557566]
[1768358534405,0.18319839,950.51,949.18,1.04557566]
[1768358535204,0.18319839,950.51,949.19,1.04557566]
[1768358536509,0.18319839,950.51,949.2,1.04557566]
[1768358537311,0.18319839,950.51,949.21,1.04557566]
[1768358538208,0.18319839,950.51,949.23,1.04557566]
[1768358539212,0.18319839,950.51,949.25,1.04557566]
[1768358540309,0.18319839,950.51,949.27,1.04557566]
[1768358541512,0.18319839,950.51,949.29,1.04557566]
[1768358542314,0.18319839,950.51,949.3,1.04557566]
[1768358543713,0.18319839,950.51,949.32,1.04557566]
[1768358544111,0.18319839,950.51,949.34,1.04557566]
[1768358544408,0.18319839,950.51,949.17,1.5785162]
[1768358544409,0.18319839,950.51,949.35,1.04557566]
[1768358546311,0.18319839,950.51,949.36,1.04557566]
[1768358548313,0.18319839,950.51,949.37,1.04557566]
[1768358549219,0.18319839,950.51,949.38,1.04557566]
[1768358549415,0.18319839,950.51,949.37,1.04557566]
[1768358550319,0.18319839,950.51,949.38,1.04557566]
[1768358551317,0.18319839,950.51,949.39,1.04557566]
[1768358552218,0.18319839,950.51,949.4,1.04557566]
[1768358554218,0.18319839,950.51,949.41,1.04557566]
[1768358560029,0.18319839,950.51,949.26,1.04557566]
[1768358560326,0.18319839,950.51,949.24,1.04557566]
[1768358560527,0.18319839,950.51,949.18,1.04557566]
[1768358561425,0.18319839,950.51,949.17,1.04557566]
[1768358563229,0.18319839,950.51,949.16,1.04557566]
[1768358564328,0.18319839,950.51,949.15,1.04557566]
[1768358566627,0.18319839,950.51,949.14,1.04557566]
[1768358568028,0.18319839,950.51,949.12,1.04557566]
[1768358568231,0.18319839,950.51,949.11,1.04557566]
[1768358569329,0.18319839,950.51,949.1,1.04557566]
[1768358570332,0.18319839,950.51,949.09,1.04557566]
[1768358572434,0.18319839,950.51,949.04,1.04557566]
[1768358572635,0.18319839,950.51,949.02,1.04557566]
[1768358573238,0.18319839,950.51,949.01,1.04557566]
[1768358574336,0.18319839,950.51,949.0,1.04557566]
[1768358576142,0.18319839,950.51,948.99,1.04557566]
[1768358576338,0.18319839,950.51,948.98,31.32788504]
[1768358605970,0.18319839,950.51,948.82,1.04557566]
[1768358606170,0.18319839,950.51,948.57,1.04557566]
[1768358607174,0.18319839,950.51,948.56,1.04557566]
[1768358608174,0.18319839,950.51,948.55,1.04557566]
[1768358610072,0.18319839,950.51,948.53,1.04557566]
[1768358610278,0.18319839,950.51,948.44,0.1832037]
[1768358628188,30.26141531,951.09,948.44,0.1832037]
[1768358628493,0.18321913,950.0,948.44,0.1832037]
[1768358628792,30.26141531,951.09,948.44,0.1832037]
[1768358629089,0.18321913,949.8,948.44,0.1832037]
[1768358629288,0.00952923,950.95,948.44,0.1832037]
[1768358629494,0.18321913,949.8,948.44,0.1832037]
[1768358629796,30.26141531,951.09,948.44,0.1832037]
[1768358630194,0.18321913,949.8,948.44,0.1832037]
[1768358630395,30.26141531,951.09,948.44,0.1832037]
[1768358630596,0.18321913,949.8,948.44,0.1832037]
[1768358630891,30.26141531,951.09,948.44,0.1832037]
[1768358631097,0.18321913,949.8,948.44,0.1832037]
[1768358631494,30.26141531,951.09,948.44,0.1832037]
[1768358631794,0.18321913,949.8,948.44,0.1832037]
[1768358631994,0.01143531,950.75,948.44,0.1832037]
[1768358632193,0.18321913,949.8,948.44,0.1832037]
[1768358632393,0.01143531,950.75,948.44,0.1832037]
[1768358632592,30.26141531,951.09,948.44,0.1832037]
[1768358632892,0.18321913,949.8,948.44,0.1832037]
[1768358633092,30.26141531,951.09,948.44,0.1832037]
[1768358633293,0.18321913,950.43,948.44,0.1832037]
[1768358638899,0.18321913,950.43,948.47,1.04557566]
[1768358639194,0.18321913,950.43,948.44,0.1832037]
[1768358639195,0.18321913,950.43,948.48,1.04557566]
[1768358639399,0.18321913,950.43,948.49,1.04557566]
[1768358640195,0.18321913,950.43,948.5,1.04557566]
[1768358642198,0.18321913,950.43,948.51,1.04557566]
[1768358643198,0.18321913,950.43,948.52,1.04557566]
[1768358643704,0.18321913,950.43,948.51,1.04557566]
[1768358645204,0.18321913,950.43,948.44,0.1832037]
[1768358645205,0.18321913,950.43,948.52,1.04557566]
[1768358645901,0.18321913,950.43,948.61,1.04557566]
[1768358646205,0.18321913,950.43,948.62,1.04557566]
[1768358646703,0.18321913,950.43,948.63,1.04557566]
[1768358646906,0.18321913,950.43,948.79,1.04557566]
[1768358647106,0.18321913,950.43,948.8,1.04557566]
[1768358648204,0.18321913,950.43,948.81,1.04557566]
[1768358648408,0.18321913,950.43,948.8,1.04557566]
[1768358649208,0.18321913,950.43,948.82,1.04557566]
[1768358651306,0.18321913,950.43,948.81,1.04557566]
[1768358653207,0.18321913,950.43,948.8,1.04557566]
[1768358654108,0.18321913,950.43,948.81,1.04557566]
[1768358654311,0.18321913,950.43,948.8,1.04557566]
[1768358655913,0.18321913,950.43,948.76,1.04557566]
[1768358656410,0.18321913,950.43,948.75,1.04557566]
[1768358659209,0.18321913,950.43,948.74,1.04557566]
[1768358663217,0.18321913,950.43,948.72,1.04557566]
[1768358665920,0.18321913,950.43,948.44,0.1832037]
[1768358665921,0.18321913,950.43,948.76,1.04557566]
[1768358668224,0.18321913,950.43,948.77,1.04557566]
[1768358671125,0.18321913,950.43,948.6,1.5785162]
[1768358671126,0.18321913,950.43,948.75,1.04557566]
[1768358671327,0.18321913,950.43,948.71,1.04557566]
[1768358672129,0.18321913,950.43,948.72,1.04557566]
[1768358673230,0.18321913,950.43,948.73,1.04557566]
[1768358674128,0.18321913,950.43,948.66,1.04557566]
[1768358677027,0.18321913,950.43,948.68,1.04557566]
[1768358678328,0.18321913,950.43,948.69,1.04557566]
[1768358679133,0.18321913,950.43,948.7,1.04557566]
[1768358679332,0.18321913,950.43,948.71,1.04557566]
[1768358681133,0.18321913,950.43,948.72,1.04557566]
[1768358682233,0.18321913,950.43,948.74,1.04557566]
[1768358683135,0.18321913,950.43,948.75,1.04557566]
[1768358685738,0.18321913,950.43,948.76,1.04557566]
[1768358688244,0.18321913,950.43,948.77,1.04557566]
[1768358689840,0.18321913,950.43,948.81,1.04557566]
[1768358690343,0.18321913,950.43,948.82,1.04557566]
[1768358699152,0.18321913,950.43,948.83,1.04557566]
[1768358704653,0.18321913,950.43,948.82,1.04557566]
[1768358705254,0.18321913,950.43,948.81,1.04557566]
[1768358706052,0.18321913,950.43,948.79,1.04557566]
[1768358706255,0.18321913,950.43,948.8,1.04557566]
[1768358706651,0.18321913,950.43,948.66,1.04557566]
[1768358707155,0.18321913,950.43,948.67,1.04557566]
[1768358707452,0.18321913,950.43,948.66,1.04557566]
[1768358708653,0.18321913,950.43,948.67,1.04557566]
[1768358709257,0.18321913,950.43,948.56,0.18318634]
[1768358709258,0.18321913,950.43,948.66,1.04557566]
[1768358710158,0.18321913,950.43,948.67,1.04557566]
[1768358710353,0.18321913,950.43,948.66,1.04557566]
[1768358711656,0.18321913,950.43,948.67,1.04557566]
[1768358711857,0.18321913,950.43,948.71,1.04557566]
[1768358712262,0.18321913,950.43,948.88,1.04557566]
[1768358712558,0.18321913,950.43,948.89,1.04557566]
[1768358715862,0.18321913,950.43,948.91,1.04557566]
[1768358716458,0.18321913,950.43,948.9,1.04557566]
[1768358720264,0.18321913,950.43,948.89,1.04557566]
[1768358726271,0.18321913,950.43,948.88,1.04557566]
[1768358732278,0.18321913,950.43,948.91,1.04557566]
[1768358732476,0.18321913,950.43,948.96,1.04557566]
[1768358732780,0.18321913,950.43,948.97,1.04557566]
[1768358734279,0.18321913,950.43,948.96,1.04557566]
[1768358737282,0.18321913,950.43,948.95,1.04557566]
[1768358738078,0.18321913,950.43,949.05,1.04557566]
[1768358739183,0.18321913,950.43,949.04,1.04557566]
[1768358740280,0.18321913,950.43,949.03,1.04557566]
[1768358740585,0.18321913,950.43,949.04,1.04557566]
[1768358741084,0.18321913,950.43,949.08,1.04557566]
[1768358741285,0.18321913,950.43,949.07,1.04557566]
[1768358741685,0.18321913,950.43,948.56,0.18318634]
[1768358741686,0.18321913,950.43,949.1,1.04557566]
[1768358741886,0.18321913,950.43,949.12,1.04557566]
[1768358742183,0.18321913,950.43,948.56,0.18318634]
[1768358742184,0.18321913,950.43,949.18,1.04557566]
[1768358742485,0.18321913,950.43,949.17,1.04557566]
[1768358742685,0.18321913,950.43,949.15,1.04557566]
[1768358743286,0.18321913,950.43,949.13,1.04557566]
[1768358744383,0.18321913,950.43,949.12,1.04557566]
[1768358746284,0.18321913,950.43,949.11,1.04557566]
[1768358747285,0.18321913,950.43,949.1,1.04557566]
[1768358749291,0.18321913,950.43,949.09,1.04557566]
[1768358751292,0.18321913,950.43,949.08,1.04557566]
[1768358753191,0.18321913,950.43,949.09,1.04557566]
[1768358754694,0.18321913,950.43,949.1,1.04557566]
[1768358755491,0.18321913,950.43,949.11,1.04557566]
[1768358757092,0.18321913,950.43,949.13,1.04557566]
[1768358757297,0.18321913,950.43,949.15,1.04557566]
[1768358757597,0.18321913,950.43,949.18,1.04557566]
[1768358757794,0.18321913,950.43,949.19,1.04557566]
[1768358758097,28.88253968,950.92,949.28,1.04557566]
[1768358758293,0.18311163,950.58,949.27,1.04557566]
[1768358759297,0.18311163,950.58,949.26,1.04557566]
[1768358760696,0.18311163,950.58,949.27,1.04557566]
[1768358760995,0.18311163,950.58,949.3,1.04557566]
[1768358761295,0.18311163,950.58,949.32,1.04557566]
[1768358762196,0.18311163,950.58,949.31,1.04557566]
[1768358763196,0.18311163,950.58,949.3,1.04557566]
[1768358763398,0.18311163,950.58,949.31,1.04557566]
[1768358763697,0.18311163,950.58,949.2,1.04557566]
[1768358763896,0.18311163,950.58,949.18,1.04557566]
[1768358764200,0.18311163,950.58,949.17,1.04557566]
[1768358764401,0.18311163,950.58,949.18,1.04557566]
[1768358766196,0.18311163,950.58,949.17,1.04557566]
[1768358766401,0.18311163,950.58,949.18,1.04557566]
[1768358769204,0.18311163,950.58,949.19,1.04557566]
[1768358770306,0.18311163,950.58,949.2,1.04557566]
[1768358772206,0.18311163,950.58,949.21,1.04557566]
[1768358773207,0.18311163,950.58,949.22,1.04557566]
[1768358775311,0.18311163,950.58,949.23,1.04557566]
[1768358776407,0.18311163,950.58,949.24,1.04557566]
[1768358777211,0.18311163,950.58,949.25,1.04557566]
[1768358778208,0.18311163,950.58,949.26,1.04557566]
[1768358779313,0.18311163,950.58,949.27,1.04557566]
[1768358780314,0.18311163,950.58,949.28,1.04557566]
[1768358781217,0.18311163,950.58,949.29,1.04557566]
[1768358782218,0.18311163,950.58,949.25,1.04557566]
[1768358782414,0.18311163,950.58,949.24,1.04557566]
[1768358784221,0.18311163,950.58,949.19,1.04557566]
[1768358784415,0.18311163,950.58,949.13,1.04557566]
[1768358785318,0.18311163,950.58,949.14,1.04557566]
[1768358785521,0.18311163,950.58,949.1,1.04557566]
[1768358785924,0.18311163,950.58,949.0,1.04557566]
[1768358787124,0.18311163,950.58,948.99,1.04557566]
[1768358787322,0.18311163,950.58,948.98,1.04557566]
[1768358788222,0.18311163,950.58,948.97,1.04557566]
[1768358788618,0.18311163,950.58,949.04,1.04557566]
[1768358789219,0.18311163,950.58,949.03,1.04557566]
[1768358790419,0.18311163,950.58,949.02,1.04557566]
[1768358792424,0.18311163,950.58,949.01,1.04557566]
[1768358793024,0.18311163,950.58,949.02,1.04557566]
[1768358793223,0.18311163,950.58,949.01,1.04557566]
[1768358793524,0.18311163,950.58,949.02,1.04557566]
[1768358793720,0.18311163,950.58,949.03,1.04557566]
[1768358796325,0.18311163,950.58,949.02,1.04557566]
[1768358797523,0.18311163,950.58,949.03,1.04557566]
[1768358801232,0.18311163,950.58,949.02,1.04557566]
[1768358805134,0.18311163,950.58,949.03,1.04557566]
[1768358807237,0.18311163,950.58,949.04,1.04557566]
[1768358809639,0.18311163,950.58,949.05,1.04557566]
[1768358812141,0.18311163,950.58,949.04,1.04557566]
[1768358814141,0.18311163,950.58,949.05,1.04557566]
[1768358817246,0.18311163,950.58,949.06,1.04557566]
[1768358818548,0.18311163,950.58,949.05,1.04557566]
[1768358819551,0.18311163,950.58,949.03,1.04557566]
[1768358819750,0.18311163,950.58,949.02,1.04557566]
[1768358821246,0.18311163,950.58,949.03,1.04557566]
[1768358822247,0.18311163,950.58,949.04,1.04557566]
[1768358824254,0.18311163,950.58,949.05,1.04557566]
[1768358825251,0.18311163,950.58,949.06,1.04557566]
[1768358826152,0.18311163,950.58,949.07,1.04557566]
[1768358827253,0.18311163,950.58,949.09,1.04557566]
[1768358828362,0.18311163,950.58,949.1,1.04557566]
[1768358829158,0.18311163,950.58,949.11,1.04557566]
[1768358832258,0.18311163,950.58,949.12,1.04557566]
[1768358838861,0.18311163,950.58,949.08,1.04557566]
[1768358839365,0.18311163,950.58,949.07,1.04557566]
[1768358839962,0.18311163,950.58,949.08,1.04557566]
[1768358840160,0.18311163,950.58,949.07,1.04557566]
[1768358843071,0.18311163,950.58,949.02,1.04557566]
[1768358843270,0.18311163,950.58,948.98,1.04557566]
[1768358845173,0.18311163,950.58,948.96,1.04557566]
[1768358845370,0.18311163,950.58,948.84,1.04557566]
[1768358846272,0.18311163,950.58,948.82,1.04557566]
[1768358847470,0.18311163,950.58,948.81,1.04557566]
[1768358848375,0.18311163,950.58,948.8,1.04557566]
[1768358849177,0.18311163,950.58,948.79,1.04557566]
[1768358850179,0.18311163,950.58,948.78,1.04557566]
[1768358852378,0.18311163,950.58,948.77,1.04557566]
[1768358854279,0.18311163,950.58,948.76,1.04557566]
[1768358858188,0.18311163,950.58,948.75,1.04557566]
[1768358860188,0.18311163,950.58,948.74,1.04557566]
[1768358864294,0.18311163,950.58,948.75,1.04557566]
[1768358865794,0.18311163,950.58,948.74,1.04557566]
[1768358866089,0.18311163,950.58,948.75,1.04557566]
[1768358866292,0.18311163,950.58,948.74,1.04557566]
[1768358867996,0.18311163,950.58,948.61,1.04557566]
[1768358868191,0.18311163,950.58,948.58,30.10403701]
[1768358870294,0.18311163,950.58,948.58,29.05846135]
[1768358887205,0.18311163,950.58,948.58,30.10403701]
[1768358888213,0.18311163,950.58,948.59,1.04557566]
[1768358888413,0.18311163,950.58,948.58,30.10403701]
[1768358888914,30.26321241,950.56,948.58,30.10403701]
[1768358889215,30.26321241,950.56,948.59,1.04557566]
[1768358890216,30.26321241,950.56,948.6,1.04557566]
[1768358897017,30.26321241,950.56,948.59,1.04557566]
[1768358897321,30.26321241,950.56,948.58,29.05846135]
[1768358909526,30.26321241,950.56,948.62,1.04557566]
[1768358909730,30.26321241,950.56,948.66,1.04557566]
[1768358910230,30.26321241,950.56,948.67,1.04557566]
[1768358911234,30.26321241,950.56,948.68,1.04557566]
[1768358912136,30.26321241,950.56,948.69,1.04557566]
[1768358913133,30.26321241,950.56,948.86,1.04557566]
[1768358913332,30.26321241,950.56,948.69,1.5785162]
[1768358913333,30.26321241,950.56,948.85,1.04557566]
[1768358914231,30.26321241,950.56,948.83,1.04557566]
[1768358915237,30.26321241,950.56,948.82,1.04557566]
[1768358916138,30.26321241,950.56,948.81,1.04557566]
[1768358917240,30.26321241,950.56,948.8,1.04557566]
[1768358918243,30.26321241,950.56,948.79,1.04557566]
[1768358919244,30.26321241,950.56,948.78,1.04557566]
[1768358920342,30.26321241,950.56,948.77,1.04557566]
[1768358922344,30.26321241,950.56,948.76,1.04557566]
[1768358925249,30.26321241,950.56,948.75,1.04557566]
[1768358926046,30.26321241,950.56,948.73,1.04557566]
[1768358926351,30.26321241,950.56,948.72,1.04557566]
[1768358930247,30.26321241,950.56,948.71,1.04557566]
[1768358936056,30.26321241,950.56,948.76,1.04557566]
[1768358940464,30.26321241,950.56,948.77,1.04557566]
[1768358942265,30.26321241,950.56,948.78,1.04557566]
[1768358943162,30.26321241,950.56,948.79,1.04557566]
[1768358945264,30.26321241,950.56,948.62,1.5785162]
[1768358945265,30.26321241,950.56,948.8,1.04557566]
[1768358947266,30.26321241,950.56,948.81,1.04557566]
[1768358948372,30.26321241,950.56,948.82,1.04557566]
[1768358949269,30.26321241,950.56,948.83,1.04557566]
[1768358950172,30.26321241,950.56,948.84,1.04557566]
[1768358951273,30.26321241,950.56,948.85,1.04557566]
[1768358952270,30.26321241,950.56,948.86,1.04557566]
[1768358953273,30.26321241,950.56,948.97,1.04557566]
[1768358954276,30.26321241,950.56,948.98,1.04557566]
[1768358955275,30.26321241,950.56,948.99,1.04557566]
[1768358956278,30.26321241,950.56,949.0,1.04557566]
[1768358957278,30.26321241,950.56,949.01,1.04557566]
[1768358958378,30.26321241,950.56,949.0,1.04557566]
[1768358958575,0.18319068,950.18,949.0,1.04557566]
[1768358958780,0.18319068,950.18,948.99,1.04557566]
[1768358962884,0.18319068,950.18,948.98,1.04557566]
[1768358979591,0.18319068,950.18,948.99,1.04557566]
[1768358980291,0.18319068,950.18,949.0,1.04557566]
[1768358982194,0.18319068,950.18,949.01,1.04557566]
[1768358982697,0.18319068,950.18,949.02,1.04557566]
[1768358989299,0.18319068,950.18,949.03,1.04557566]
[1768358991905,0.18319068,950.18,949.04,1.04557566]
[1768358992504,0.18319068,950.18,949.06,1.04557566]
[1768358992705,0.18319068,950.18,949.09,1.04557566]
[1768358993807,0.18319068,950.18,949.17,1.04557566]
[1768358994407,0.18319068,950.18,949.16,1.04557566]
[1768358996307,0.18319068,950.18,949.15,1.04557566]
[1768358998910,0.18319068,950.18,949.22,1.04557566]
[1768358999509,0.18319068,950.18,949.21,1.04557566]
[1768359001206,0.18319068,950.18,949.2,1.04557566]
[1768359002411,0.18319068,950.18,948.58,0.18321961]
[1768359002412,0.18319068,950.18,949.19,1.04557566]
[1768359002612,0.18319068,950.18,949.13,1.04557566]
[1768359002813,0.18319068,950.18,948.87,1.04557566]
[1768359003014,0.18319068,950.18,948.85,1.04557566]
[1768359003313,0.18319068,950.18,948.84,1.04557566]
[1768359005315,0.18319068,950.18,948.83,1.04557566]
[1768359006515,0.18319068,950.18,948.82,1.04557566]
[1768359007316,0.18319068,950.18,948.81,1.04557566]
[1768359009716,0.18319068,950.18,948.58,0.18321961]
[1768359010416,0.18319068,950.18,948.31,32.69749403]
[1768359010816,0.18319068,950.18,948.39,0.18325531]
[1768359026826,0.18319068,950.18,947.27,2.59938453]
[1768359027029,0.18319068,950.18,946.9,2.59938453]
[1768359027224,0.18319068,950.18,947.89,0.18335138]
[1768359027627,0.18319068,950.18,946.69,2.59938453]
[1768359027828,0.18319068,950.18,947.75,0.18339631]
[1768359028028,0.18319068,950.18,946.62,2.59938453]
[1768359028229,0.18319068,950.18,946.61,2.59938453]
[1768359028430,0.18319068,950.18,947.75,0.18340308]
[1768359028730,0.18319068,950.18,946.57,2.59938453]
[1768359028930,0.18319068,950.18,947.75,0.18340501]
[1768359029230,0.18319068,950.18,946.57,2.59938453]
[1768359029427,0.18319068,950.18,947.65,0.18341758]
[1768359029627,0.18319068,950.18,946.57,2.59938453]
[1768359029830,0.18319068,950.18,946.53,2.59938453]
[1768359030032,0.18319068,950.18,947.65,0.18341709]
[1768359030227,0.18319068,950.18,946.53,2.59938453]
[1768359030428,0.18319068,950.18,947.68,0.18341129]
[1768359030830,0.18319068,950.18,946.51,2.59938453]
[1768359031134,0.18319068,950.18,947.7,0.18341033]
[1768359031333,0.18319068,950.18,946.48,2.59938453]
[1768359031528,0.18319068,950.18,947.75,0.18340163]
[1768359031833,0.18319068,950.18,946.49,2.59938453]
[1768359032033,0.18319068,950.18,947.78,0.18340163]
[1768359032333,0.18319068,950.18,946.47,2.59938453]
[1768359032533,0.18319068,950.18,947.8,0.18340114]
[1768359032830,0.18319068,950.18,946.47,2.59938453]
[1768359033129,0.18319068,950.18,947.81,0.18340114]
[1768359033430,0.18319068,950.18,946.45,2.59938453]
[1768359033631,0.18319068,950.18,947.81,0.18340114]
[1768359033933,0.18319068,950.18,946.45,2.59938453]
[1768359034130,0.18319068,950.18,947.81,0.18340163]
[1768359034533,0.18319068,950.18,946.43,2.59938453]
[1768359034828,0.18319068,950.18,947.81,0.18340163]
[1768359035130,0.18319068,950.18,946.43,2.59938453]
[1768359035433,0.18319068,950.18,947.8,0.18340501]
[1768359035629,0.18319068,950.18,946.42,2.59938453]
[1768359035933,0.18319068,950.18,947.8,0.18340501]
[1768359036129,0.18319068,950.18,946.42,2.59938453]
[1768359036429,0.18319068,950.18,947.8,0.18340549]
[1768359036632,0.18319068,950.18,946.4,2.59938453]
[1768359036830,0.18319068,950.18,947.81,0.18340259]
[1768359037328,0.18319068,950.18,947.81,0.18340308]
[1768359042036,0.18319068,950.18,946.5,2.59938453]
[1768359042335,0.18319068,950.18,946.23,2.59938453]
[1768359042535,0.18319068,950.18,947.48,0.18342628]
[1768359042735,0.18319068,950.18,946.15,2.59938453]
[1768359042932,0.18319068,950.18,947.46,0.1834461]
[1768359043332,0.18319068,950.18,946.04,2.59938453]
[1768359043532,0.18319068,950.18,947.46,0.18346592]
[1768359043837,0.18319068,950.18,946.01,2.59938453]
[1768359044034,0.18319068,950.18,947.46,0.18347076]
[1768359044239,0.18319068,950.18,946.01,2.59938453]
[1768359044633,0.18319068,950.18,947.5,0.18346641]
[1768359044938,0.18319068,950.18,946.09,2.59938453]
[1768359045133,0.18319068,950.18,947.53,0.18346641]
[1768359045435,0.18319068,950.18,946.08,2.59938453]
[1768359045635,0.18319068,950.18,947.55,0.18345867]
[1768359045839,0.18319068,950.18,946.08,2.59938453]
[1768359046140,0.18319068,950.18,947.56,0.18345915]
[1768359046638,0.18319068,950.18,947.6,0.18345142]
[1768359048036,0.18319068,950.18,946.07,2.59938453]
[1768359048336,0.18319068,950.18,947.4,0.18345964]
[1768359048541,0.18319068,950.18,945.96,2.59938453]
[1768359048840,0.18319068,950.18,947.29,0.18348237]
[1768359049037,0.18319068,950.18,945.93,2.59938453]
[1768359049038,3.64813145,950.08,945.93,2.59938453]
[1768359049239,3.64813145,950.08,947.29,0.18348769]
[1768359049743,3.64813145,950.08,947.29,0.18350462]
[1768359052544,3.64813145,950.08,945.91,2.59938453]
[1768359052847,3.64813145,950.08,947.21,0.18351333]